fUSD/lending_fUSD_20240819
["ID","MTS","AMOUNT","RATE_DAILY","PERIOD"]
[335318835,1724107851191,-7266.64,0.00010988,2]
[335318836,1724107851201,-1618.69,0.00010988,2]
[335318837,1724107851210,-500.0,0.00010988,2]
[335318838,1724107851220,-3042.93,0.00010988,2]
[335318839,1724107851229,-5902.04,0.00010988,2]
[335318840,1724107851239,-1162.45,0.00010988,2]
[335318841,1724107851248,-1162.45,0.00010988,2]
[335318842,1724107851258,-1162.45,0.00010988,2]
[335318843,1724107851268,-1162.45,0.00010988,2]
[335318844,1724107851278,-1520.16,0.00010988,2]
[335318845,1724107851287,-9546.17,0.00010988,2]
[335318846,1724107851300,-9405.06,0.00010988,2]
[335318847,1724107851309,-1142.28,0.00010988,2]
[335318848,1724107851319,-78787.79,0.00010988,2]
[335318849,1724107851329,-3438.52,0.00010988,2]
[335318850,1724107851339,-500.0,0.00010988,2]
[335318851,1724107851349,-500.0,0.00010988,2]
[335318852,1724107851359,-500.0,0.00010988,2]
[335318853,1724107851369,-6472.4,0.00010988,2]
[335318854,1724107851378,-500.0,0.00010988,2]
[335318855,1724107851388,-500.0,0.00010988,2]
[335318856,1724107851398,-500.0,0.00010988,2]
[335318857,1724107851407,-20277.07,0.00010988,2]
[335318858,1724107851417,-514.78,0.00010988,2]
[335318859,1724107851427,-521.72306159,0.00010989,2]
[335318860,1724107851436,-519.92936525,0.00010989,2]
[335318861,1724107851445,-532.55119756,0.00010989,2]
[335318862,1724107851454,-500.0,0.00010989,2]
[335318863,1724107851463,-525.04281655,0.00010989,2]
[335318864,1724107851474,-511.65994276,0.00010989,2]
[335318865,1724107851483,-518.17754041,0.00010989,2]
[335318866,1724107851493,-507.20879061,0.00010989,2]
[335318867,1724107851503,-508.77674894,0.00010989,2]
[335318868,1724107851512,-501.91795586,0.00010989,2]
[335318869,1724107851522,-512.13197576,0.00010989,2]
[335318870,1724107851532,-516.92557741,0.00010989,2]
[335318871,1724107851542,-506.43311331,0.00010989,2]
[335318872,1724107851555,-516.48226863,0.00010989,2]
[335318873,1724107851565,-521.60753082,0.00010989,2]
[335318874,1724107851574,-500.0,0.00010989,2]
[335318875,1724107851584,-531.23485756,0.00010989,2]
[335318876,1724107851594,-500.0,0.00010989,2]
[335318877,1724107851603,-536.87713614,0.00010989,2]
[335318878,1724107851613,-522.24288003,0.00010989,2]
[335318879,1724107851622,-514.41620828,0.00010989,2]
[335318880,1724107851631,-500.0,0.00010989,2]
[335318881,1724107851641,-500.0,0.00010989,2]
[335318882,1724107851650,-500.0,0.00010989,2]
[335318883,1724107851660,-517.8083904,0.00010989,2]
[335318884,1724107851670,-500.0,0.00010989,2]
[335318885,1724107851680,-500.0,0.00010989,2]
[335318886,1724107851689,-500.0,0.00010989,2]
[335318887,1724107851698,-500.0,0.00010989,2]
[335318888,1724107851708,-625.40061086,0.00010989,2]
[335318889,1724107851717,-517.89131453,0.00010989,2]
[335318890,1724107851728,-500.0,0.00010989,2]
[335318891,1724107851738,-500.0,0.00010989,2]
[335318892,1724107851750,-500.0,0.00010989,2]
[335318893,1724107851760,-500.0,0.00010989,2]
[335318894,1724107851769,-429.62,0.00010989,2]
[335318895,1724107851779,-2083.33,0.00010989,2]
[335318896,1724107851825,-2083.33,0.00010989,2]
[335318897,1724107851836,-2083.33,0.00010989,2]
[335318898,1724107851845,-2083.33,0.00010989,2]
[335318899,1724107851855,-2083.33,0.00010989,2]
[335318900,1724107851864,-2083.33,0.00010989,2]
[335318901,1724107851874,-2083.33,0.00010989,2]
[335318902,1724107851884,-3046.02,0.00010989,2]
[335318903,1724107851893,-3540.96,0.00010989,2]
[335318904,1724107851902,-816.91,0.00010989,2]
[335318905,1724107851911,-3676.98,0.00010989,2]
[335318906,1724107851921,-16932.38,0.00010989,2]
[335318907,1724107851930,-2937.4,0.00010989,2]
[335318908,1724107851940,-5697.62,0.00010989,2]
[335318909,1724107851949,-6834.79,0.00010989,2]
[335318910,1724107851959,-5515.11,0.00010989,2]
[335318911,1724107851968,-5360.61,0.00010989,2]
[335318912,1724107851977,-5248.07,0.00010989,2]
[335318913,1724107851987,-6645.16,0.00010989,2]
[335318914,1724107851996,-4291.93,0.00010989,2]
[335318915,1724107852005,-4644.54,0.00010989,2]
[335318916,1724107852015,-2936.52,0.00010989,2]
[335318917,1724107852026,-4336.67,0.00010989,2]
[335318918,1724107852035,-3444.21,0.00010989,2]
[335318919,1724107852047,-1098.18,0.00010989,2]
[335318920,1724107852056,-500.0,0.00010989,2]
[335318921,1724107852065,-863.76,0.00010989,2]
[335318922,1724107852075,-670.12,0.00010989,2]
[335318923,1724107852084,-7119.31,0.00010989,2]
[335318924,1724107852094,-22107.3,0.00010989,2]
[335318925,1724107852104,-4250.0,0.0001099,2]
[335318926,1724107852112,-512.14621399,0.00010993,2]
[335318927,1724107852121,-1024.29242798,0.00010994,2]
[335318928,1724107852130,-3046.02,0.00010995,2]
[335318929,1724107852139,-3540.96,0.00010995,2]
[335318930,1724107852148,-816.91,0.00010995,2]
[335318931,1724107852157,-3676.98,0.00010995,2]
[335318932,1724107852167,-16932.38,0.00010995,2]
[335318933,1724107852176,-2937.4,0.00010995,2]
[335318934,1724107852185,-5697.62,0.00010995,2]
[335318935,1724107852195,-6834.79,0.00010995,2]
[335318936,1724107852204,-5515.11,0.00010995,2]
[335318937,1724107852213,-5360.61,0.00010995,2]
[335318938,1724107852223,-5248.07,0.00010995,2]
[335318939,1724107852232,-6645.16,0.00010995,2]
[335318940,1724107852241,-4291.93,0.00010995,2]
[335318941,1724107852250,-4644.54,0.00010995,2]
[335318942,1724107852260,-2936.52,0.00010995,2]
[335318943,1724107852269,-4336.67,0.00010995,2]
[335318944,1724107852278,-3444.21,0.00010995,2]
[335318945,1724107852287,-1098.18,0.00010995,2]
[335318946,1724107852299,-500.0,0.00010995,2]
[335318947,1724107852308,-863.76,0.00010995,2]
[335318948,1724107852317,-670.12,0.00010995,2]
[335318949,1724107852327,-7119.31,0.00010995,2]
[335318950,1724107852336,-22107.3,0.00010995,2]
[335318951,1724107852346,-512.14621399,0.00010995,2]
[335318952,1724107852355,-521.72,0.00010996,2]
[335318953,1724107852365,-500.0,0.00010996,2]
[335318954,1724107852374,-500.0,0.00010996,2]
[335318955,1724107852383,-500.0,0.00010996,2]
[335318956,1724107852393,-500.0,0.00010996,2]
[335318957,1724107852402,-500.0,0.00010996,2]
[335318958,1724107852412,-500.0,0.00010996,2]
[335318959,1724107852421,-398.84,0.00010996,2]
[335318960,1724107852430,-952.71,0.00010996,2]
[335318961,1724107852439,-952.71,0.00010996,2]
[335318962,1724107852448,-952.71,0.00010996,2]
[335318963,1724107852458,-952.71,0.00010996,2]
[335318964,1724107852468,-1293.56,0.00010996,2]
[335318965,1724107852477,-1293.56,0.00010996,2]
[335318966,1724107852487,-1293.56,0.00010996,2]
[335318967,1724107852496,-1293.56,0.00010996,2]
[335318968,1724107852505,-500.0,0.00010996,2]
[335318969,1724107852515,-500.0,0.00010996,2]
[335318970,1724107852525,-500.0,0.00010996,2]
[335318971,1724107852535,-500.0,0.00010996,2]
[335318972,1724107852547,-1000.28,0.00010996,2]
[335318973,1724107852558,-1000.28,0.00010996,2]
[335318974,1724107852568,-1000.28,0.00010996,2]
[335318975,1724107852578,-1000.28,0.00010996,2]
[335318976,1724107852587,-1132.52,0.00010996,2]
[335318977,1724107852597,-1132.52,0.00010996,2]
[335318978,1724107852607,-1132.52,0.00010996,2]
[335318979,1724107852617,-1132.52,0.00010996,2]
[335318980,1724107852627,-3609.21,0.00010996,2]
[335318981,1724107852636,-3609.21,0.00010996,2]
[335318982,1724107852645,-3609.21,0.00010996,2]
[335318983,1724107852655,-3609.21,0.00010996,2]
[335318984,1724107852665,-2713.68,0.00010996,2]
[335318985,1724107852674,-2713.68,0.00010996,2]
[335318986,1724107852683,-2713.68,0.00010996,2]
[335318987,1724107852693,-2713.68,0.00010996,2]
[335318988,1724107852702,-500.0,0.00010996,2]
[335318989,1724107852712,-500.0,0.00010996,2]
[335318990,1724107852721,-500.0,0.00010996,2]
[335318991,1724107852731,-500.0,0.00010996,2]
[335318992,1724107852741,-1760.41,0.00010996,2]
[335318993,1724107852756,-1760.41,0.00010996,2]
[335318994,1724107852765,-1760.41,0.00010996,2]
[335318995,1724107852775,-1760.41,0.00010996,2]
[335318996,1724107852784,-500.0,0.00010996,2]
[335318997,1724107852796,-500.0,0.00010996,2]
[335318998,1724107852806,-500.0,0.00010996,2]
[335318999,1724107852815,-500.0,0.00010996,2]
[335319000,1724107852827,-500.0,0.00010996,2]
[335319001,1724107852836,-1271.46,0.00010996,2]
[335319002,1724107852845,-1303.44,0.00010996,2]
[335319003,1724107852855,-1303.44,0.00010996,2]
[335319004,1724107852865,-1303.44,0.00010996,2]
[335319005,1724107852875,-1303.44,0.00010996,2]
[335319006,1724107852889,-819.75,0.00010996,2]
[335319007,1724107852898,-819.75,0.00010996,2]
[335319008,1724107852907,-819.75,0.00010996,2]
[335319009,1724107852917,-819.75,0.00010996,2]
[335319010,1724107852926,-2051.08,0.00010996,2]
[335319011,1724107852935,-2051.08,0.00010996,2]
[335319012,1724107852944,-3046.02,0.00010996,2]
[335319013,1724107852954,-2051.08,0.00010996,2]
[335319014,1724107852963,-3046.02,0.00010996,2]
[335319015,1724107852972,-2051.08,0.00010996,2]
[335319016,1724107852982,-3046.02,0.00010996,2]
[335319017,1724107852991,-3046.02,0.00010996,2]
[335319018,1724107853002,-3046.02,0.00010996,2]
[335319019,1724107853012,-3046.02,0.00010996,2]
[335319020,1724107853021,-3046.02,0.00010996,2]
[335319021,1724107853030,-3046.02,0.00010996,2]
[335319022,1724107853039,-3046.02,0.00010996,2]
[335319023,1724107853052,-3046.02,0.00010996,2]
[335319024,1724107853061,-3046.02,0.00010996,2]
[335319025,1724107853071,-3540.96,0.00010996,2]
[335319026,1724107853080,-3046.02,0.00010996,2]
[335319027,1724107853089,-3540.96,0.00010996,2]
[335319028,1724107853099,-3046.04842516,0.00010996,2]
[335319029,1724107853108,-3540.96,0.00010996,2]
[335319030,1724107853118,-3540.96,0.00010996,2]
[335319031,1724107853127,-3540.96,0.00010996,2]
[335319032,1724107853136,-3540.96,0.00010996,2]
[335319033,1724107853146,-3540.96,0.00010996,2]
[335319034,1724107853155,-3540.96,0.00010996,2]
[335319035,1724107853164,-3540.96,0.00010996,2]
[335319036,1724107853173,-3540.96,0.00010996,2]
[335319037,1724107853183,-3540.96,0.00010996,2]
[335319038,1724107853192,-3540.96,0.00010996,2]
[335319039,1724107853201,-3541.1502427,0.00010996,2]
[335319040,1724107853211,-816.91,0.00010996,2]
[335319041,1724107853220,-816.91,0.00010996,2]
[335319042,1724107853229,-816.91,0.00010996,2]
[335319043,1724107853239,-816.91,0.00010996,2]
[335319044,1724107853250,-816.91,0.00010996,2]
[335319045,1724107853259,-816.91,0.00010996,2]
[335319046,1724107853269,-816.91,0.00010996,2]
[335319047,1724107853279,-816.91,0.00010996,2]
[335319048,1724107853288,-816.91,0.00010996,2]
[335319049,1724107853300,-816.91,0.00010996,2]
[335319050,1724107853310,-1358.1,0.00010996,2]
[335319051,1724107853319,-816.91,0.00010996,2]
[335319052,1724107853328,-1358.1,0.00010996,2]
[335319053,1724107853337,-816.91,0.00010996,2]
[335319054,1724107853346,-1358.1,0.00010996,2]
[335319055,1724107853356,-817.01666634,0.00010996,2]
[335319056,1724107853365,-1358.1,0.00010996,2]
[335319057,1724107853374,-3676.98,0.00010996,2]
[335319058,1724107853384,-1168.5,0.00010996,2]
[335319059,1724107853393,-3676.98,0.00010996,2]
[335319060,1724107853403,-3676.98,0.00010996,2]
[335319061,1724107853412,-3676.98,0.00010996,2]
[335319062,1724107853422,-3676.98,0.00010996,2]
[335319063,1724107853431,-3676.98,0.00010996,2]
[335319064,1724107853440,-3676.98,0.00010996,2]
[335319065,1724107853449,-3676.98,0.00010996,2]
[335319066,1724107853459,-3676.98,0.00010996,2]
[335319067,1724107853468,-3676.98,0.00010996,2]
[335319068,1724107853478,-3676.98,0.00010996,2]
[335319069,1724107853487,-3676.98,0.00010996,2]
[335319070,1724107853497,-3677.02504743,0.00010996,2]
[335319071,1724107853507,-741.37,0.00010996,2]
[335319072,1724107853516,-741.37,0.00010996,2]
[335319073,1724107853526,-741.37,0.00010996,2]
[335319074,1724107853536,-741.37,0.00010996,2]
[335319075,1724107853547,-500.0,0.00010996,2]
[335319076,1724107853558,-500.0,0.00010996,2]
[335319077,1724107853567,-500.0,0.00010996,2]
[335319078,1724107853577,-500.0,0.00010996,2]
[335319079,1724107853586,-16932.38,0.00010996,2]
[335319080,1724107853595,-2937.4,0.00010996,2]
[335319081,1724107853605,-16932.38,0.00010996,2]
[335319082,1724107853614,-2937.4,0.00010996,2]
[335319083,1724107853623,-16932.38,0.00010996,2]
[335319084,1724107853633,-2937.4,0.00010996,2]
[335319085,1724107853642,-16932.38,0.00010996,2]
[335319086,1724107853651,-2937.4,0.00010996,2]
[335319087,1724107853661,-2937.4,0.00010996,2]
[335319088,1724107853670,-16932.38,0.00010996,2]
[335319089,1724107853679,-2937.4,0.00010996,2]
[335319090,1724107853689,-2937.4,0.00010996,2]
[335319091,1724107853698,-16932.38,0.00010996,2]
[335319092,1724107853708,-2937.4,0.00010996,2]
[335319093,1724107853718,-2937.4,0.00010996,2]
[335319094,1724107853727,-16932.38,0.00010996,2]
[335319095,1724107853741,-3956.02,0.00010996,2]
[335319096,1724107853750,-2937.4,0.00010996,2]
[335319097,1724107853759,-16932.38,0.00010996,2]
[335319098,1724107853769,-2937.4,0.00010996,2]
[335319099,1724107853779,-16932.38,0.00010996,2]
[335319100,1724107853789,-2937.4,0.00010996,2]
[335319101,1724107853800,-2937.41207843,0.00010996,2]
[335319102,1724107853811,-2881.08,0.00010996,2]
[335319103,1724107853823,-16932.38,0.00010996,2]
[335319104,1724107853832,-2881.08,0.00010996,2]
[335319105,1724107853841,-16932.38,0.00010996,2]
[335319106,1724107853851,-2881.08,0.00010996,2]
[335319107,1724107853860,-12858.51831742,0.00010996,2]
[335319108,1724107854056,-4073.86168258,0.00010996,2]
[335319109,1724107854066,-2881.08,0.00010996,2]
[335319110,1724107854075,-16932.38784866,0.00010996,2]
[335319111,1724107854085,-5697.62,0.00010996,2]
[335319112,1724107854094,-5697.62,0.00010996,2]
[335319113,1724107854104,-5697.62,0.00010996,2]
[335319114,1724107854114,-5697.62,0.00010996,2]
[335319115,1724107854123,-5697.62,0.00010996,2]
[335319116,1724107854133,-1169.55,0.00010996,2]
[335319117,1724107854142,-5697.62,0.00010996,2]
[335319118,1724107854152,-5697.62,0.00010996,2]
[335319119,1724107854161,-5697.62,0.00010996,2]
[335319120,1724107854170,-6834.79,0.00010996,2]
[335319121,1724107854179,-5697.62,0.00010996,2]
[335319122,1724107854188,-6834.79,0.00010996,2]
[335319123,1724107854198,-5697.62,0.00010996,2]
[335319124,1724107854207,-2821.31,0.00010996,2]
[335319125,1724107854216,-6834.79,0.00010996,2]
[335319126,1724107854225,-5697.62,0.00010996,2]
[335319127,1724107854235,-2821.31,0.00010996,2]
[335319128,1724107854244,-6834.79,0.00010996,2]
[335319129,1724107854253,-5697.62,0.00010996,2]
[335319130,1724107854262,-2821.31,0.00010996,2]
[335319131,1724107854272,-6834.79,0.00010996,2]
[335319132,1724107854282,-5697.70520712,0.00010996,2]
[335319133,1724107854293,-2821.31,0.00010996,2]
[335319134,1724107854305,-6834.79,0.00010996,2]
[335319135,1724107854315,-6834.79,0.00010996,2]
[335319136,1724107854325,-6834.79,0.00010996,2]
[335319137,1724107854336,-6834.79,0.00010996,2]
[335319138,1724107854347,-6834.79,0.00010996,2]
[335319139,1724107854357,-1995.66,0.00010996,2]
[335319140,1724107854367,-6834.79,0.00010996,2]
[335319141,1724107854377,-1995.66,0.00010996,2]
[335319142,1724107854386,-6834.79,0.00010996,2]
[335319143,1724107854396,-1995.66,0.00010996,2]
[335319144,1724107854406,-6834.85883527,0.00010996,2]
[335319145,1724107854416,-1995.66,0.00010996,2]
[335319146,1724107854426,-5515.11,0.00010996,2]
[335319147,1724107854435,-5515.11,0.00010996,2]
[335319148,1724107854446,-5515.11,0.00010996,2]
[335319149,1724107854455,-5515.11,0.00010996,2]
[335319150,1724107854465,-5515.11,0.00010996,2]
[335319151,1724107854474,-500.0,0.00010996,2]
[335319152,1724107854484,-5515.11,0.00010996,2]
[335319153,1724107854493,-5515.11,0.00010996,2]
[335319154,1724107854503,-5515.11,0.00010996,2]
[335319155,1724107854513,-5515.11,0.00010996,2]
[335319156,1724107854523,-5515.11,0.00010996,2]
[335319157,1724107854533,-5515.11,0.00010996,2]
[335319158,1724107854542,-5515.11,0.00010996,2]
[335319159,1724107854553,-15531.48,0.00010996,2]
[335319160,1724107854563,-5515.20020458,0.00010996,2]
[335319161,1724107854573,-15531.48,0.00010996,2]
[335319162,1724107854583,-15531.48,0.00010996,2]
[335319163,1724107854592,-15531.48,0.00010996,2]
[335319164,1724107854602,-5360.61,0.00010996,2]
[335319165,1724107854612,-5360.61,0.00010996,2]
[335319166,1724107854622,-5360.61,0.00010996,2]
[335319167,1724107854632,-5360.61,0.00010996,2]
[335319168,1724107854642,-5360.61,0.00010996,2]
[335319169,1724107854652,-5360.61,0.00010996,2]
[335319170,1724107854662,-5360.61,0.00010996,2]
[335319171,1724107854671,-5360.61,0.00010996,2]
[335319172,1724107854683,-5360.61,0.00010996,2]
[335319173,1724107854693,-5360.61,0.00010996,2]
[335319174,1724107854703,-5360.61,0.00010996,2]
[335319175,1724107854713,-5360.61,0.00010996,2]
[335319176,1724107854722,-5360.67,0.00010996,2]
[335319177,1724107854733,-5248.07,0.00010996,2]
[335319178,1724107854745,-1011.18716101,0.00010996,2]
[335319179,1724107854759,-394.78141388,0.00010996,2]
[335319180,1724107854771,-2250.36235156,0.00010996,2]
[335319181,1724107854783,-1591.73907355,0.00010996,2]
[335319182,1724107854794,-128.33826369,0.00010996,2]
[335319183,1724107854807,-5119.73173631,0.00010996,2]
[335319184,1724107854817,-757.99,0.00010996,2]
[335319185,1724107854832,-5248.07,0.00010996,2]
[335319186,1724107854841,-5248.07,0.00010996,2]
[335319187,1724107854851,-5248.07,0.00010996,2]
[335319188,1724107854860,-3307.18457473,0.00010996,2]
[335319189,1724107855236,-1940.88542527,0.00010996,2]
[335319190,1724107855246,-1863.39541057,0.00010996,2]
[335319191,1724107855256,-884.16644664,0.00010996,2]
[335319192,1724107855273,-1127.3,0.00010987,2]
[335319193,1724107855282,-208.63812631,0.00010996,2]
[335319194,1724107855293,-2291.87001648,0.00010996,2]
[335319195,1724107855304,-679.94673228,0.00010996,2]
[335319196,1724107856343,-500.0,0.00010986,2]
[335319197,1724107856354,-500.0,0.00010986,2]
[335319198,1724107856363,-500.0,0.00010986,2]
[335319199,1724107856372,-1127.3,0.00010987,2]
[335319200,1724107856381,-1127.3,0.00010989,2]
[335319201,1724107856390,-1127.3,0.00010995,2]
[335319202,1724107856399,-4568.12326772,0.00010996,2]
[335319203,1724107856408,-5248.07,0.00010996,2]
[335319204,1724107856418,-5248.07,0.00010996,2]
[335319205,1724107856429,-5248.07,0.00010996,2]
[335319206,1724107856439,-5248.19,0.00010996,2]
[335319207,1724107856448,-7266.64,0.00010996,2]
[335319208,1724107856458,-7266.64,0.00010996,2]
[335319209,1724107856467,-1618.69,0.00010996,2]
[335319210,1724107856476,-1618.69,0.00010996,2]
[335319211,1724107856486,-7266.64,0.00010996,2]
[335319212,1724107856496,-1618.69,0.00010996,2]
[335319213,1724107856505,-7266.64,0.00010996,2]
[335319214,1724107856514,-1618.69,0.00010996,2]
[335319215,1724107856523,-2783.97939907,0.00010996,2]
[335319216,1724107856536,-1454.42699957,0.00010996,2]
[335319217,1724107856548,-2406.75360136,0.00010996,2]
[335319218,1724107856557,-976.25168923,0.00010996,2]
[335319219,1724107856568,-5668.90831077,0.00010996,2]
[335319220,1724107856577,-6645.16,0.00010996,2]
[335319221,1724107856586,-6645.16,0.00010996,2]
[335319222,1724107856595,-6645.16,0.00010996,2]
[335319223,1724107856604,-6645.16,0.00010996,2]
[335319224,1724107856612,-6645.16,0.00010996,2]
[335319225,1724107856621,-6645.16,0.00010996,2]
[335319226,1724107856630,-6645.16,0.00010996,2]
[335319227,1724107856640,-6645.16,0.00010996,2]
[335319228,1724107856650,-6645.16,0.00010996,2]
[335319229,1724107856659,-6645.16,0.00010996,2]
[335319230,1724107856667,-6645.3202272,0.00010996,2]
[335319231,1724107856676,-500.0,0.00010996,2]
[335319232,1724107856685,-3042.93,0.00010996,2]
[335319233,1724107856694,-3042.93,0.00010996,2]
[335319234,1724107856703,-3042.93,0.00010996,2]
[335319235,1724107856712,-5902.04,0.00010996,2]
[335319236,1724107856721,-3042.93,0.00010996,2]
[335319237,1724107856731,-5902.04,0.00010996,2]
[335319238,1724107856740,-5902.04,0.00010996,2]
[335319239,1724107856753,-5902.04,0.00010996,2]
[335319240,1724107856762,-4291.93,0.00010996,2]
[335319241,1724107856771,-4291.93,0.00010996,2]
[335319242,1724107856782,-4291.93,0.00010996,2]
[335319243,1724107856791,-4291.93,0.00010996,2]
[335319244,1724107856801,-4291.93,0.00010996,2]
[335319245,1724107856810,-4291.93,0.00010996,2]
[335319246,1724107856820,-4291.93,0.00010996,2]
[335319247,1724107856829,-4291.93,0.00010996,2]
[335319248,1724107856838,-3233.21846604,0.00010996,2]
[335319249,1724107856854,-1058.71153396,0.00010996,2]
[335319250,1724107856863,-185.22759744,0.00010996,2]
[335319251,1724107856874,-360.80937151,0.00010996,2]
[335319252,1724107856885,-384.34999965,0.00010996,2]
[335319253,1724107856896,-470.39356303,0.00010996,2]
[335319254,1724107856912,-2891.14946837,0.00010996,2]
[335319255,1724107856922,-4291.93,0.00010996,2]
[335319256,1724107856933,-4291.93,0.00010996,2]
[335319257,1724107856942,-128.07598151,0.00010996,2]
[335319258,1724107856953,-4163.99546581,0.00010996,2]
[335319259,1724107856963,-1520.16,0.00010996,2]
[335319260,1724107856974,-9546.17,0.00010996,2]
[335319261,1724107856983,-1520.16,0.00010996,2]
[335319262,1724107856996,-9546.17,0.00010996,2]
[335319263,1724107857007,-1520.16,0.00010996,2]
[335319264,1724107857016,-9546.17,0.00010996,2]
[335319265,1724107857025,-1520.16,0.00010996,2]
[335319266,1724107857035,-9546.17,0.00010996,2]
[335319267,1724107857044,-4644.54,0.00010996,2]
[335319268,1724107857060,-3874.9042442,0.00010996,2]
[335319269,1724107857072,-327.12129972,0.00010996,2]
[335319270,1724107857082,-442.51445608,0.00010996,2]
[335319271,1724107857092,-4644.54,0.00010996,2]
[335319272,1724107857101,-4163.66909112,0.00010996,2]
[335319273,1724107857112,-480.87090888,0.00010996,2]
[335319274,1724107857122,-3856.08676619,0.00010996,2]
[335319275,1724107857346,-500.0,0.00010986,2]
[335319276,1724107857355,-500.0,0.00010986,2]
[335319277,1724107857364,-31.19781314,0.00010987,2]
[335319278,1724107857377,-468.80218686,0.00010987,2]
[335319279,1724107857386,-438.55131314,0.00010987,2]
[335319280,1724107857397,-61.44868686,0.00010987,2]
[335319281,1724107857406,-500.0,0.00010987,2]
[335319282,1724107857415,-176.58769314,0.00010987,2]
[335319283,1724107857437,-323.41230686,0.00010987,2]
[335319284,1724107857446,-500.0,0.00010989,2]
[335319285,1724107857456,-500.0,0.00010995,2]
[335319286,1724107857465,-646.75612253,0.00010996,2]
[335319287,1724107857477,-141.69711128,0.00010996,2]
[335319288,1724107857486,-1117.36722992,0.00010996,2]
[335319289,1724107857498,-3527.17277008,0.00010996,2]
[335319290,1724107857508,-4644.54,0.00010996,2]
[335319291,1724107857517,-4644.54,0.00010996,2]
[335319292,1724107857526,-4109.81708473,0.00010996,2]
[335319293,1724107857537,-534.72291527,0.00010996,2]
[335319294,1724107857546,-13.118849,0.00010996,2]
[335319295,1724107857556,-1343.99298,0.00010996,2]
[335319296,1724107857567,-684.54573394,0.00010996,2]
[335319297,1724107857582,-2602.88243706,0.00010996,2]
[335319298,1724107857592,-4644.54,0.00010996,2]
[335319299,1724107857603,-4644.54,0.00010996,2]
[335319300,1724107857613,-4224.76346134,0.00010996,2]
[335319301,1724107857625,-419.94046608,0.00010996,2]
[335319302,1724107857636,-1379.35157171,0.00010996,2]
[335319303,1724107857654,-620.1702649,0.00010996,2]
[335319304,1724107857666,-821.87458283,0.00010996,2]
[335319305,1724107857677,-660.32229313,0.00010996,2]
[335319307,1724107932019,4482.2764,9.888e-05,2]
[335319308,1724108080547,196.56,7.212e-05,2]
[335319309,1724108134018,693.09243413,7.212e-05,2]
[335319311,1724108182193,14346.73058769,7.212e-05,2]
[335319312,1724108195099,291.36870266,7.212e-05,2]
[335319313,1724108200722,533.35,8.219e-05,2]
[335319315,1724108296552,250.0,9.876e-05,2]
[335319316,1724108317266,623.31,9.885e-05,2]
[335319317,1724108385001,23900.0,9.867e-05,2]
[335319318,1724108465166,6041.74960874,9.867e-05,2]
[335319319,1724108496084,800.0,9.824e-05,2]
[335319320,1724108530655,2839.53769688,9.899e-05,2]
[335319321,1724108607612,196.56,7.059e-05,2]
[335319322,1724108691876,535.65,8.219e-05,2]
[335319323,1724108712251,150.0,9.888e-05,2]
[335319324,1724108778915,250.0,9.765e-05,2]
[335319325,1724108831613,170.18,9.761e-05,2]
[335319327,1724108866598,5700.02,9.733e-05,2]
[335319328,1724108919419,-3591.63350976,9.91e-05,2]
[335319331,1724108919521,-3591.63350976,9.91e-05,2]
[335319334,1724108944547,-300.0,9.909e-05,2]
[335319336,1724108944577,-3435.29885015,9.91e-05,2]
[335319338,1724108944626,-3735.29885015,9.91e-05,2]
[335319339,1724108944704,-1076.86407028,9.91e-05,2]
[335319347,1724108983117,360.0,9.744e-05,2]
[335319358,1724109032035,-2818.399724,9.943e-05,2]
[335319363,1724109032079,-215.65270219,9.943e-05,2]
[335319364,1724109032089,-272.0,9.952e-05,2]
[335319365,1724109032099,-1211.93355993,9.952e-05,2]